Cogmind - Beta 17 @@@ ROGUE MODE // 2026.06.23 @ 09:59:58 Player: f3-rnm Result: Destroyed by Self-contained X0-Launcher Performance ------------- Evolutions (0) 0 Regions Visited (2) 400 Robots Destroyed (14) 70 Value Destroyed (412) 412 Prototype IDs (1) 20 Alien Tech Used (0) 0 Bonus (5180) 5180 TOTAL SCORE: 6082 Bonus ------- Follower Combat Kills 30 Prayed to X0-1V1 5000 Major X0-1V1 Interference 150 Cogmind --------- Core Integrity 0/150 Matter 300/300 Energy 248/250 System Corruption 12% Temperature Cool (0) Movement Rolling (175) Ox5 Location -10/Subcaves Parts ------- > --- POWER (1) -------- Ion Engine > --- PROPULSION (2) --- Compact Wheel > --- UTILITY (2) ------ Huge Storage Unit X0-1V1's Piety Tracker > --- WEAPON (2) ------- Subdweller Laser > --- INVENTORY (25) --- Light Ion Engine Spiked Treads Aluminum Leg Subdweller Monowheel Small Storage Unit Seismic Detector Scrap Shield Light Assault Rifle Peak State ------------ > --- POWER ------------ Ion Engine > --- PROPULSION ------- Compact Wheel Subdweller Monowheel > --- UTILITY ---------- Huge Storage Unit X0-1V1's Piety Tracker > --- WEAPON ----------- Subdweller Laser Subdweller Machine Gun > --- INVENTORY -------- Light Ion Engine Aluminum Leg Subdweller Monowheel Small Storage Unit Seismic Detector Scrap Shield Light Assault Rifle [Rating: 23] Favorites ----------- Power Ion Engine Engine Ion Engine Propulsion Light Treads Treads Light Treads Leg Aluminum Leg Wheel Wheel Utility X0-1V1's Piety Tracker Device X0-1V1's Piety Tracker Storage Huge Storage Unit Weapon Light Assault Rifle Energy Gun Medium Laser Ballistic Gun Light Assault Rifle Build | -11 -10 -10 ------- Run | Yrd Mat Sub Slots Evolved . | . . . Power . | . . . Propulsion . | . . . Utility . | . . . Weapon . | . . . Parts Attached 18 | 6 3 9 Power 3 | 1 . 2 Engine 3 | 1 . 2 Core . | . . . Reactor . | . . . Propulsion 6 | 2 . 4 Treads 2 | 2 . . Leg 1 | . . 1 Wheel 3 | . . 3 Hover . | . . . Flight . | . . . Utility 3 | 1 2 . Device 1 | . 1 . Storage 2 | 1 1 . Processor . | . . . Hackware . | . . . Protection . | . . . Artifact . | . . . Weapon 6 | 2 1 3 Energy Gun 2 | . 1 1 Energy Cannon . | . . . Ballistic Gun 4 | 2 . 2 Ballistic Cannon . | . . . Launcher . | . . . Special Weapon . | . . . Impact Weapon . | . . . Slashing Weapon . | . . . Piercing Weapon . | . . . Special Melee Weapon . | . . . Unidentified Prototypes 1 | . 1 . Parts Lost 11 | . . 11 Power 2 | . . 2 Propulsion 5 | . . 5 Utility . | . . . Weapon 4 | . . 4 Highest Loss Streak 4 | . . 4 To Critical Strikes . | . . . Average Backups 7 | 1 5 9 Power 1 | . 1 1 Propulsion 3 | 1 2 3 Utility 1 | . 1 2 Weapon 1 | . . 1 Tool/Special . | . . . Unused Backups 6 | . . 6 Power 1 | . . 1 Propulsion 3 | . . 3 Utility 2 | . . 2 Weapon . | . . . Tool/Special . | . . . Average Slot Usage (%) 97 | . 96 98 Engine 13 | . 13 13 Treads 19 | . 27 13 Leg 1 | . . 2 Wheel 6 | . . 10 Device 13 | . 11 14 Storage 14 | . 14 14 Energy Gun 6 | . 6 6 Ballistic Gun 20 | . 20 20 Peak Build Rating 23 | 6 19 23 Average Rating 18 | 4 17 20 On Entrance 8 | . 6 19 Avg Prop Armor Cover (%) 11 | . . 11 Naked Turns . | . . . Heaviest Build 94 | 12 89 94 Greatest Support 40 | 40 40 40 Greatest Overweight (x) 9 | . 3 9 Average Overweight (x) 3 | . . 6 Largest Inventory Capacity 25 | 8 25 25 Average Capacity 20 | 7 15 25 Most Carried 12 | 3 9 12 Average Carried 7 | 1 5 9 Final Capacity 25 | 8 25 25 Final Carried 9 | 3 9 9 Class Distribution -------------------- 100% | Mutant Dominant Class ---------------- Mutant | -10/Materials Mutant | -10/Subcaves Resources | -11 -10 -10 ----------- Run | Yrd Mat Sub Matter Collected 582 | 163 230 189 Remotely . | . . . Salvage Created 434 | . 235 199 Parts 26 | . 15 11 Haulers Intercepted . | . . . Recyclers Shooed . | . . . Parts Field Recycled . | . . . Retrieved Matter . | . . . Parts Self-Destructed 8 | . . 8 Prevented . | . . . Parts Restored . | . . . Kills | -11 -10 -10 ------- Run | Yrd Mat Sub Combat Hostiles Destroyed 13 | . 5 8 Guns 13 | . 5 8 Classes Destroyed 4 | . 2 2 Watcher 1 | . 1 . Swarmer 4 | . . 4 Grunt 5 | . 5 . Subdweller 4 | . . 4 Best Kill Streak 2 | . 2 2 Combat Bots Only 2 | . 2 2 Max Kills in Single Turn 1 | . 1 1 Gunslinging . | . . . Exploded . | . . . Melee . | . . . Uniques/NPCs Destroyed . | . . . Combat | -11 -10 -10 -------- Run | Yrd Mat Sub Hostile Shots Fired 115 | . 32 83 Missed 31 | . 10 21 Hits 84 | . 22 62 Projectile 84 | . 22 62 Critical Strikes 2 | . . 2 Damage Taken 1243 | . 298 945 Core 269 | . 61 208 Absorbed by Shields . | . . . Core Remaining (%) 100 | 100 . . Volleys Fired 74 | 1 27 46 Largest 2 | 2 2 2 Hottest 90 | 40 70 90 Shots Fired 144 | 2 54 88 Gun 144 | 2 54 88 Cannon . | . . . Launcher . | . . . Special . | . . . Kinetic 108 | 2 41 65 Thermal 36 | . 13 23 Explosive . | . . . Electromagnetic . | . . . Robot Hit Streak 20 | . 11 20 Robot Miss Streak 7 | . 2 7 Penetration Max . | . . . Secondary Targets 3 | . 2 1 Max Gunslinging Chain 1 | . 1 1 Shots Hit Robots 79 | . 37 42 Core Hits 31 | . 18 13 Critical Kills . | . . . Critical Parts Destroyed . | . . . Critical Strikes . | . . . Melee Attacks . | . . . Impact . | . . . Slashing . | . . . Piercing . | . . . Sneak Attacks . | . . . Combat Hostiles . | . . . Follow-up Attacks . | . . . Damage Inflicted 1073 | . 361 712 Guns 1031 | . 319 712 Cannons 42 | . 42 . Explosions . | . . . Melee . | . . . Ramming . | . . . Kinetic 836 | . 237 599 Thermal 237 | . 124 113 Explosive . | . . . Electromagnetic . | . . . Impact . | . . . Slashing . | . . . Piercing . | . . . Highest Corruption 12 | . . 12 Average Corruption 12 | . . 12 Corruption Purged . | . . . Corruption Blocked . | . . . Effects 23 | . . 23 Message Errors 5 | . . 5 Matter Fused 3 | . . 3 Heat Flow Errors 5 | . . 5 Energy Discharges 3 | . . 3 Data Loss (minor) 6 | . . 6 Weapon Failures 1 | . . 1 Overload Shots . | . . . Overflow Damage . | . . . Projectiles . | . . . Explosions . | . . . Melee . | . . . Knockbacks 1 | . 1 . Impact . | . . . Kinetic 1 | . 1 . Secondary . | . . . Self-Inflicted Damage . | . . . Shots . | . . . Rammed . | . . . Targets Rammed . | . . . Kicked . | . . . Crushed . | . . . Highest Temperature 256 | . 231 256 Average Temperature 99 | . 94 107 Received Heat Transfer 297 | . 165 132 Siege Activations . | . . . Martial Activations . | . . . Shielding Activations . | . . . Robots Disrupted . | . . . Combat Hostiles . | . . . Robots Corrupted . | . . . Combat Hostiles . | . . . Parts Fried . | . . . Impact Corruptions . | . . . Robots Melted . | . . . Combat Hostiles . | . . . Parts Melted . | . . . Heat Transferred 642 | . 370 272 Parts Sabotaged . | . . . Parts Stolen . | . . . Parts Stripped . | . . . Power Chain Reactions . | . . . Alert | -11 -10 -10 ------- Run | Yrd Mat Sub Maximum Alert Level . | . . . Low Security (%) 100 | 100 100 . Level 1 . | . . . Level 2 . | . . . Level 3 . | . . . Level 4 . | . . . Level 5 . | . . . High Security . | . . . Max Security . | . . . Peak Influence 50 | . 50 . Initial . | . . . Average 8 | . 9 . Influence Increases 322 | . 137 185 Destroy 0b10 Robot/C 180 | . 100 80 Destroy 0b10 Robot/NC 5 | . 5 . Destroy Leader 32 | . 32 . Lose Combat Pursuer 105 | . . 105 Influence Decreases 257 | . 127 130 Entered New Map 6 | . . 6 Time Decay 191 | . 127 64 Lost Part 60 | . . 60 Squads Dispatched 1 | . 1 . Investigation . | . . . Extermination . | . . . Reinforcement 1 | . 1 . Assault . | . . . Garrison . | . . . Intercept . | . . . Searches Triggered . | . . . Construction Impeded . | . . . Haulers Reinforced . | . . . Active Scanning Responses . | . . . Cargo Convoy Interrupts . | . . . Stealth | -11 -10 -10 --------- Run | Yrd Mat Sub Distress Signals . | . . . Communications Jammed . | . . . Distress Signals . | . . . Times Spotted 21 | . 9 12 Peak Tracking Total 4 | . 2 4 Tactical Retreats 3 | . . 3 Traps | -11 -10 -10 ------- Run | Yrd Mat Sub Traps Triggered 3 | . 3 . Indirectly . | . . . Trap Hack Attempts . | . . . Triggered . | . . . Disarmed . | . . . Reprogrammed . | . . . Reused . | . . . Traps Extracted . | . . . Installed . | . . . Triggered . | . . . Machines | -11 -10 -10 ---------- Run | Yrd Mat Sub Machines Disabled 1 | . . 1 Max in Single Turn 1 | . . 1 Machines Repaired . | . . . Machines Dismantled . | . . . Machines Sabotaged . | . . . Overloaded Fab Kills . | . . . Hacking | -11 -10 -10 --------- Run | Yrd Mat Sub Machines Accessed . | . . . Terminals . | . . . Fabricators . | . . . Repair Stations . | . . . Recycling Units . | . . . Scanalyzers . | . . . Garrison Access . | . . . Total Hacks . | . . . Successful . | . . . Failed . | . . . Catastrophic . | . . . Database Lockouts . | . . . Manual 4 | . 4 . Terminals . | . . . Fabricators . | . . . Repair Stations . | . . . Recycling Units . | . . . Scanalyzers . | . . . Garrison Access . | . . . Terminal Hacks . | . . . Fabricator Hacks . | . . . Repair Station Hacks . | . . . Recycling Unit Hacks . | . . . Scanalyzer . | . . . Garrison Access Hacks . | . . . Unauthorized Hacks . | . . . Terminals . | . . . Fabricators . | . . . Repair Stations . | . . . Recycling Units . | . . . Scanalyzers . | . . . Garrison Access . | . . . Data Cores Recovered . | . . . Used . | . . . Hacking Detections . | . . . Full Trace Events . | . . . Feedback Events . | . . . Feedback Blocked . | . . . Robot Schematics Acquired . | . . . Robots Built . | . . . Authchips . | . . . Time . | . . . Total Robot Build Rating . | . . . Part Schematics Acquired . | . . . Parts Built . | . . . Authchips . | . . . Time . | . . . Total Part Build Rating . | . . . Part Studies Acquired . | . . . Parts Repaired . | . . . Time . | . . . Parts Recycled . | . . . Recycled Matter . | . . . Retrieved Matter . | . . . Retrieved Components . | . . . Parts Scanalyzed . | . . . Part Schematics Acquired . | . . . Parts Damaged . | . . . Bothacking | -11 -10 -10 ------------ Run | Yrd Mat Sub Used RIF Installer . | . . . Robots Hacked . | . . . Non-combat . | . . . Combat . | . . . Robot Hacks Applied . | . . . Relay Couplers Released . | . . . Fabnet Peak Effective % . | . . . Robots Rewired . | . . . Allies Hacked . | . . . Hacks Repelled . | . . . Allies | -11 -10 -10 -------- Run | Yrd Mat Sub Total Allies 2 | . . 2 Largest Group 2 | . . 2 Highest-Rated Group 16 | . . 16 Highest-Rated Ally 8 | . . 8 Total Orders . | . . . Ally Attacks 4 | . . 4 Total Damage 33 | . . 33 Kills 1 | . . 1 Allies Corrupted . | . . . Allies Melted . | . . . X0-1V1 Amusement Gains 19 | . 17 2 Good Acts 10 | . 6 4 Bad Acts 3 | . . 3 Intel | -11 -10 -10 ------- Run | Yrd Mat Sub Active Infowar (turns) . | . . . Robot Analysis Total . | . . . Derelict Logs Recovered 1 | . . 1 Drone Launches . | . . . Drone Recoveries . | . . . Exploration | -11 -10 -10 ------------- Run | Yrd Mat Sub Turns Passed 1890 | 91 733 1066 Spaces Moved 763 | 50 308 405 Core 3 | 2 1 . Treads 441 | 48 307 86 Legs . | . . . Wheels 319 | . . 319 Hover . | . . . Flight . | . . . Fastest Speed 50 | 50 160 129 Average Speed 214 | 155 208 226 Slowest Speed 480 | 160 320 480 Overloaded Moves . | . . . Propulsion Burnouts . | . . . Robots Hopped . | . . . Potential Cave-ins . | . . . Cave-ins Triggered . | . . . Exploration Rate (%) 27 | 4 43 34 Regions Visited 2 Branch Regions 1 Pre-discovered Areas . | . . . Known Exits Taken . | . . . Unknown Exits Taken 2 | 1 1 . Scrap Searched . | . . . Spaces Dug . | . . . Terrain Destroyed . | . . . Melee . | . . . Projectile . | . . . AOE . | . . . Terrain Rammed . | . . . Walls Destroyed . | . . . Machines Disabled . | . . . Actions | -11 -10 -10 --------- Run | Yrd Mat Sub Total 878 | 59 349 470 Wait 1 | . . 1 Move 761 | 49 307 405 Hop . | . . . Pick Up 16 | 3 6 7 Fast Attach 12 | 6 6 . Attach 10 | . 1 9 Detach . | . . . Swap 4 | . 2 2 Drop . | . . . Fire 74 | 1 27 46 Melee . | . . . Ram . | . . . Kick . | . . . Crush . | . . . Escape Stasis . | . . . Rewire . | . . . Trap . | . . . Miscellaneous . | . . . Route ------- -11/Scrapyard -10/Materials (discovered 2 exits: [*Mat] / [*Sub]) -10/Subcaves (discovered 1 exit: Mat) History --------- Turn | Location | Event 62 | -11/Scrapyard | Discovered new exit (range 15) 92 | -11/Scrapyard | Entered Materials 182 | -10/Materials | Discovered new exit (range 7) 192 | -10/Materials | Prayed at D.C.S.S. Altar Unit 310 | -10/Materials | Build established: Mutant 333 | -10/Materials | Discovered new exit (range 16) 825 | -10/Materials | Entered Subcaves 826 | -10/Subcaves | Approached by a straggling Scientist 961 | -10/Subcaves | Shifting Twisted Machinery released Sub. Machine Gun 1163 | -10/Subcaves | Shifting Twisted Machinery released Mak. Light Armor Plating 1452 | -10/Subcaves | System corruption reached 10% 1551 | -10/Subcaves | Core integrity fell below 50% 1589 | -10/Subcaves | Lost 4 parts (1p1n2w) 1657 | -10/Subcaves | A swath of the cavern ceiling suddenly collapsed 1693 | -10/Subcaves | Energy generation permanently improved by X0-1V1 (+10) 1697 | -10/Subcaves | Learned 2 Materials zone layouts 1748 | -10/Subcaves | Identified exit to Materials 1748 | -10/Subcaves | X0-1V1 revealed exit location to -8/Materials 1791 | -10/Subcaves | Core integrity fell below 20% 1812 | -10/Subcaves | Shifting Twisted Machinery released Spk. Treads 1824 | -10/Subcaves | Lost 4 parts (1p2n1w) 1883 | -10/Subcaves | X0-1V1 sent allied G-34 Mercenary (x2) 1891 | -10/Subcaves | Destroyed by Self-contained X0-Launcher Last Messages --------------- 01847_ Acquired 21 matter. 01848_ System corrupted: Component data lost. 01855_ Subatomizers dissect the Tech Extrapolator. 01865_ System corrupted: Matter fused (-8). 01870_ Subatomizers dissect the Tech Extrapolator. 01871_ X0-1V1 is bored! 01877_ F7-H1K(R) destroyed. 01879_ X0-1V1: "The ol' switcheroo!" ZZ-CHR(R) form resolidifies at new position. Form resolidifies at new position. 01879_ 5T-NUD(u) tweaks Twisted Machinery. 01883_ The cosmic winds blow in a new direction. G-34 Mercenary form resolidifies at new position. 01883_ Acquired 39 matter. 01888_ J7E2IZ%AD6S96LO,BR7GWC 01888_ Sub. Machine Gun destroyed. 01891_ X0-1V1: "Fire in the hole!" 01891_ ZZ-CHR(R) destroyed. 01891_ Sub. Monowheel destroyed. 01891_ X0-1V1 chortles! Map ----- +----------------------------------------------------+ | #### "### ## ###??????????????????????? | | ##??##"# # ##?????????????????????? | | #????# ##????????????????????? | | #????# ## ##???????????????????? | | ##??## # ! ### ##??????????????????? | | #### ## ! ##?# #??????????????????? | | # # ## #?## #??????????????????? | | ## #?## ### #??????????????????? | | ###??## ###??????????????????? | | ##????# ####?????????????????? | | #????# ## ####??????????????? | | # #????## ### #??????????????? | | #### ##?????## #?# #??????????????? | | ##### #???????##?# ##;# #??????????????? | | # #" #?????????### # ?? #?????????????? | | ##"" #??????????;# ;; ##?##?????????????? | | ##""## #????????# ;;;;????????????????? | | ##"###? #??????#?# ; ????????????????? | | #"##???## #??####;#; * ; ????????????????? | | #"##????? ???# # ; ;;% ;; ????????????????? | | """#?????? ???# ; ! ; ##??????????????? | | "#"#??????? ???# ; g;;; #??????????????? | | ""##???????# ??#; ;;;g ;;#??????????????? | | ###????????? ??#;# ;#??????????????? | | #????????????#?# ##??????????????? | | ???????????????# @ #??????????????? | | #??????????????# ![ #??????????????? | | #??????????????## * & #??????????????? | | #???????????????# & #??????????????? | | ????????????????# #??????????????? | | ????????????????# #??????????????? | | ????????????????# """##??????????????? | | ????????????????# " "#???????????????? | | ???????????????# " #???????????????? | | ???????????????##"" """#???????????????? | | ????????????????###"""""""##???????????????? | | ??????????????????#""""""##????????????????? | | ??????????????????# """#????????????????? | | ???????????????##### "? ?????????????????? | | ???????????????# ## "#? ##????????????????? | | #??????????????# # ""## #????????????????? | | #??????????????# #?" "#????????????????? | | #??????????????# ###" ""#????????????????? | | #??????????????# """"""#????????????????? | | #??????????????# ##" ????????????????? | | #??????????????# ###???????????????????? | | ##?????????????# ##?????????????????????? | | #?????????????#### #?????????????????????? | | #???????????????# #?????????????????????? | | ##???????????????# #?????????????????????? | +----------------------------------------------------+ Best States ------------- Heat Dissipation 82 Energy Generation 20 Energy Capacity 250 Matter Stores 300 Matter Capacity 300 Sight Range 16 Terrain Scan Density 10 Evasion (%) 40 Recoil Reduction 2 Item Schematics ----------------- None Robot Schematics ------------------ None Fabricated ------------ Nothing Repaired ---------- Nothing Studied --------- None Alien Tech Used ----------------- None Achievements -------------- Chaos Is Inevitable Challenges ------------ None Game ------ Seed AlloyDroneWartreads Manual? 0 Play Time 00:10:51 Cumulative 527.4 hours Start 2026.06.23 @ 09:52:05 End 2026.06.23 @ 09:59:58 Sessions 1 Manual Loads 0 Difficulty Rogue Special Mode None Game No. 443 Rogue 407 Adventurer 36 Explorer 0 Win Type - Total 24 Types 9/0/13/0/0/1/1/0/0/0 Lore% 73 Gallery% 85 Achievement% 72 Wizard Run 0 Options --------- Layout 0 ASCII 0 Keyboard 0 Movement Mouse Keybinds 0 Fullscreen 1 Font 18/SmallcapsGlow Map View 76x50 Zoom Use 0% Tactical HUD 1 Map Filters NONE Filters NONE Steam 1 RUN: 06f06dc2-85ef-4e58-bdb6-b8f06624004f